[Event "December 5 Early 2023"]
[Site "https://www.chess.com"]
[Date "2023.12.05"]
[Round "1"]
[White "Ovezdurdyyeva, Jemal"]
[Black "Banzea, Alexandru-Bogdan"]
[Result "1-0"]
[Board "138"]
[TimeControl "180+1"]
[WhiteFideId "14001888"]
[BlackFideId "1232622"]
[WhiteElo "2371"]
[BlackElo "2660"]
[WhiteTeam "TKM"]
[BlackTeam "ROU"]
[WhiteClock "0:01:10"]
[BlackClock "0:00:00"]

1. e4 {[%clk 0:03:00]}  c5 {[%clk 0:02:59]} 2. Nf3 {[%clk 0:03:00]}  g6 {[%clk 0:02:58]} 3. c3 {[%clk 0:03:00]}  Nc6 {[%clk 0:02:56]} 4. d4 {[%clk 0:03:00]}  d5 {[%clk 0:02:57]} 5. exd5 {[%clk 0:02:56]}  Qxd5 {[%clk 0:02:57]} 6. Be2 {[%clk 0:02:55]}  Bg7 {[%clk 0:02:21]} 7. Be3 {[%clk 0:02:55]}  cxd4 {[%clk 0:01:47]} 8. cxd4 {[%clk 0:02:54]}  Nf6 {[%clk 0:01:38]} 9. Nc3 {[%clk 0:02:51]}  Qd8 {[%clk 0:01:38]} 10. d5 {[%clk 0:02:47]}  Nb8 {[%clk 0:01:39]} 11. O-O {[%clk 0:02:47]}  O-O {[%clk 0:01:38]} 12. Qd2 {[%clk 0:02:45]}  Bg4 {[%clk 0:01:35]} 13. Rac1 {[%clk 0:02:44]}  Nbd7 {[%clk 0:01:32]} 14. h3 {[%clk 0:02:39]}  Bxf3 {[%clk 0:01:32]} 15. Bxf3 {[%clk 0:02:39]}  Nb6 {[%clk 0:01:32]} 16. Rfd1 {[%clk 0:02:37]}  Nc4 {[%clk 0:01:31]} 17. Qe2 {[%clk 0:02:36]}  Nxe3 {[%clk 0:01:21]} 18. Qxe3 {[%clk 0:02:37]}  Ne8 {[%clk 0:01:11]} 19. Re1 {[%clk 0:02:30]}  Bf6 {[%clk 0:00:59]} 20. Ne4 {[%clk 0:02:26]}  Bxb2 {[%clk 0:00:54]} 21. Rb1 {[%clk 0:02:27]}  Bg7 {[%clk 0:00:46]} 22. Rxb7 {[%clk 0:02:26]}  Nd6 {[%clk 0:00:46]} 23. Nxd6 {[%clk 0:02:25]}  exd6 {[%clk 0:00:47]} 24. Rxa7 {[%clk 0:02:21]}  Qb8 {[%clk 0:00:40]} 25. Rxa8 {[%clk 0:02:05]}  Qxa8 {[%clk 0:00:40]} 26. Qe7 {[%clk 0:01:57]}  Be5 {[%clk 0:00:32]} 27. Re2 {[%clk 0:01:53]}  Qa3 {[%clk 0:00:22]} 28. Qc7 {[%clk 0:01:42]}  Qd3 {[%clk 0:00:12]} 29. Qc2 {[%clk 0:01:35]}  Qd4 {[%clk 0:00:09]} 30. g3 {[%clk 0:01:33]}  Bxg3 {[%clk 0:00:07]} 31. Kg2 {[%clk 0:01:29]}  Be5 {[%clk 0:00:07]} 32. Re4 {[%clk 0:01:27]}  Qa1 {[%clk 0:00:07]} 33. a4 {[%clk 0:01:25]}  Ra8 {[%clk 0:00:07]} 34. Rc4 {[%clk 0:01:22]}  Qe1 {[%clk 0:00:04]} 35. Bg4 {[%clk 0:01:21]}  Qa5 {[%clk 0:00:03]} 36. Bd7 {[%clk 0:01:18]}  Kg7 {[%clk 0:00:03]} 37. Qe4 {[%clk 0:01:13]}  Rb8 {[%clk 0:00:02]} 38. Rc2 {[%clk 0:01:10]}  Qe1 {[%clk 0:00:00]} 39. Qf3 {[%clk 0:01:10]} 1-0

[Event "December 5 Early 2023"]
[Site "https://www.chess.com"]
[Date "2023.12.05"]
[Round "1"]
[White "Goryachkina, Aleksandra"]
[Black "Melikhov, Evgeny V."]
[Result "1-0"]
[Board "139"]
[TimeControl "180+1"]
[WhiteFideId "4147103"]
[BlackFideId "4122046"]
[WhiteElo "2659"]
[BlackElo "2369"]
[WhiteTeam "FID"]
[BlackTeam "GRE"]
[WhiteClock "0:01:36"]
[BlackClock "0:00:52"]

1. e4 {[%clk 0:02:59]}  e5 {[%clk 0:02:59]} 2. Nf3 {[%clk 0:02:58]}  Nc6 {[%clk 0:02:59]} 3. Bc4 {[%clk 0:02:58]}  Nf6 {[%clk 0:02:58]} 4. d3 {[%clk 0:02:58]}  Be7 {[%clk 0:02:57]} 5. O-O {[%clk 0:02:55]}  O-O {[%clk 0:02:56]} 6. Nc3 {[%clk 0:02:54]}  d6 {[%clk 0:02:56]} 7. a3 {[%clk 0:02:54]}  Be6 {[%clk 0:02:55]} 8. Nd5 {[%clk 0:02:52]}  Bxd5 {[%clk 0:02:55]} 9. exd5 {[%clk 0:02:46]}  Nd4 {[%clk 0:02:55]} 10. Nxd4 {[%clk 0:02:35]}  exd4 {[%clk 0:02:55]} 11. c3 {[%clk 0:02:35]}  dxc3 {[%clk 0:02:50]} 12. bxc3 {[%clk 0:02:36]}  Nd7 {[%clk 0:02:49]} 13. Rb1 {[%clk 0:02:36]}  Rb8 {[%clk 0:02:35]} 14. d4 {[%clk 0:02:32]}  a6 {[%clk 0:02:26]} 15. a4 {[%clk 0:02:27]}  Bg5 {[%clk 0:02:22]} 16. f4 {[%clk 0:02:27]}  Bh6 {[%clk 0:02:16]} 17. a5 {[%clk 0:02:26]}  f5 {[%clk 0:01:58]} 18. Re1 {[%clk 0:02:10]}  Re8 {[%clk 0:01:46]} 19. Re6 {[%clk 0:02:07]}  Nf8 {[%clk 0:01:46]} 20. Rxe8 {[%clk 0:01:52]}  Qxe8 {[%clk 0:01:45]} 21. Bd3 {[%clk 0:01:50]}  g6 {[%clk 0:01:44]} 22. Bd2 {[%clk 0:01:48]}  Bg7 {[%clk 0:01:28]} 23. g4 {[%clk 0:01:47]}  fxg4 {[%clk 0:01:23]} 24. Qxg4 {[%clk 0:01:46]}  Nd7 {[%clk 0:01:13]} 25. Qe6+ {[%clk 0:01:39]}  Kh8 {[%clk 0:01:04]} 26. Qxe8+ {[%clk 0:01:36]}  Rxe8 {[%clk 0:00:52]} 27. Rxb7 {[%clk 0:01:36]} 1-0

[Event "December 5 Early 2023"]
[Site "https://www.chess.com"]
[Date "2023.12.05"]
[Round "1"]
[White "Manon-og, Ramon Jr."]
[Black "Ovetchkin, Roman"]
[Result "1-0"]
[Board "140"]
[TimeControl "180+1"]
[WhiteFideId "5200776"]
[BlackFideId "4119991"]
[WhiteElo "2367"]
[BlackElo "2659"]
[WhiteTeam "PHI"]
[BlackTeam "RUS"]
[WhiteClock "0:00:45"]
[BlackClock "0:00:17"]

1. e4 {[%clk 0:02:59]}  c6 {[%clk 0:03:00]} 2. d4 {[%clk 0:02:59]}  d5 {[%clk 0:03:00]} 3. e5 {[%clk 0:02:59]}  Bf5 {[%clk 0:03:00]} 4. Nd2 {[%clk 0:03:00]}  e6 {[%clk 0:03:00]} 5. Nb3 {[%clk 0:03:01]}  Nd7 {[%clk 0:03:00]} 6. Nf3 {[%clk 0:03:01]}  Qc7 {[%clk 0:02:59]} 7. Be2 {[%clk 0:03:02]}  f6 {[%clk 0:02:58]} 8. Bf4 {[%clk 0:02:54]}  fxe5 {[%clk 0:02:58]} 9. Nxe5 {[%clk 0:02:53]}  Bd6 {[%clk 0:02:58]} 10. O-O {[%clk 0:02:27]}  Nxe5 {[%clk 0:02:44]} 11. dxe5 {[%clk 0:02:27]}  Bxe5 {[%clk 0:02:45]} 12. Bxe5 {[%clk 0:02:26]}  Qxe5 {[%clk 0:02:45]} 13. Re1 {[%clk 0:02:27]}  Qd6 {[%clk 0:02:29]} 14. Bh5+ {[%clk 0:02:03]}  g6 {[%clk 0:02:25]} 15. Bf3 {[%clk 0:02:03]}  h5 {[%clk 0:02:18]} 16. Qd4 {[%clk 0:01:55]}  Rh7 {[%clk 0:02:14]} 17. c4 {[%clk 0:01:40]}  Re7 {[%clk 0:01:54]} 18. Re5 {[%clk 0:01:20]}  Qb4 {[%clk 0:01:46]} 19. Rc1 {[%clk 0:01:13]}  Kf7 {[%clk 0:01:06]} 20. h3 {[%clk 0:01:08]}  Nf6 {[%clk 0:00:49]} 21. Rc3 {[%clk 0:00:57]}  dxc4 {[%clk 0:00:42]} 22. Rxc4 {[%clk 0:00:50]}  Qb6 {[%clk 0:00:42]} 23. Qh4 {[%clk 0:00:47]}  Rd8 {[%clk 0:00:36]} 24. g4 {[%clk 0:00:44]}  hxg4 {[%clk 0:00:35]} 25. hxg4 {[%clk 0:00:45]}  Bd3 {[%clk 0:00:17]} 26. Rf4 {[%clk 0:00:45]} 1-0

[Event "December 5 Early 2023"]
[Site "https://www.chess.com"]
[Date "2023.12.05"]
[Round "1"]
[White "Spata, German"]
[Black "Buscar, Michael"]
[Result "1-0"]
[Board "145"]
[TimeControl "180+1"]
[WhiteFideId "113026"]
[BlackFideId "2603616"]
[WhiteElo "2651"]
[BlackElo "2352"]
[WhiteTeam "ARG"]
[BlackTeam "CAN"]
[WhiteClock "0:00:15"]
[BlackClock "0:00:00"]

1. Nf3 {[%clk 0:02:55]}  d5 {[%clk 0:02:31]} 2. b3 {[%clk 0:02:54]}  Nf6 {[%clk 0:02:26]} 3. Bb2 {[%clk 0:02:55]}  Bg4 {[%clk 0:02:24]} 4. e3 {[%clk 0:02:55]}  e6 {[%clk 0:02:12]} 5. Be2 {[%clk 0:02:56]}  Be7 {[%clk 0:02:11]} 6. O-O {[%clk 0:02:56]}  O-O {[%clk 0:02:10]} 7. h3 {[%clk 0:02:56]}  Bh5 {[%clk 0:02:10]} 8. c4 {[%clk 0:02:56]}  a5 {[%clk 0:02:08]} 9. cxd5 {[%clk 0:02:56]}  exd5 {[%clk 0:02:07]} 10. a3 {[%clk 0:02:54]}  c6 {[%clk 0:02:01]} 11. d3 {[%clk 0:02:54]}  Na6 {[%clk 0:02:01]} 12. Nbd2 {[%clk 0:02:54]}  Nc5 {[%clk 0:01:59]} 13. Re1 {[%clk 0:02:53]}  Bg6 {[%clk 0:01:57]} 14. Qc2 {[%clk 0:02:53]}  Qb6 {[%clk 0:01:56]} 15. Bd4 {[%clk 0:02:46]}  Qb5 {[%clk 0:01:43]} 16. Ne5 {[%clk 0:02:36]}  Bf5 {[%clk 0:01:30]} 17. Rab1 {[%clk 0:02:21]}  Bd6 {[%clk 0:01:22]} 18. Ndf3 {[%clk 0:02:10]}  Rfe8 {[%clk 0:01:17]} 19. Rec1 {[%clk 0:01:57]}  Nfd7 {[%clk 0:00:57]} 20. Nxd7 {[%clk 0:01:41]}  Nxd7 {[%clk 0:00:57]} 21. Qb2 {[%clk 0:01:35]}  Bf8 {[%clk 0:00:50]} 22. Rd1 {[%clk 0:01:27]}  Nc5 {[%clk 0:00:36]} 23. Qc2 {[%clk 0:01:25]}  Ne6 {[%clk 0:00:35]} 24. Bb2 {[%clk 0:01:22]}  Qc5 {[%clk 0:00:33]} 25. Rdc1 {[%clk 0:01:15]}  Qxc2 {[%clk 0:00:32]} 26. Rxc2 {[%clk 0:01:15]}  Nc5 {[%clk 0:00:32]} 27. Ne1 {[%clk 0:01:07]}  Nxb3 {[%clk 0:00:32]} 28. Bxg7 {[%clk 0:01:04]}  Kxg7 {[%clk 0:00:21]} 29. Rxb3 {[%clk 0:01:04]}  Reb8 {[%clk 0:00:19]} 30. g4 {[%clk 0:01:00]}  Bd7 {[%clk 0:00:16]} 31. d4 {[%clk 0:00:53]}  b5 {[%clk 0:00:15]} 32. Nd3 {[%clk 0:00:48]}  Bd6 {[%clk 0:00:13]} 33. Nc5 {[%clk 0:00:45]}  Be8 {[%clk 0:00:12]} 34. Rbb2 {[%clk 0:00:42]}  b4 {[%clk 0:00:10]} 35. axb4 {[%clk 0:00:43]}  axb4 {[%clk 0:00:11]} 36. Bd3 {[%clk 0:00:38]}  Ra1+ {[%clk 0:00:10]} 37. Kg2 {[%clk 0:00:38]}  Ra3 {[%clk 0:00:08]} 38. Bf5 {[%clk 0:00:38]}  Bxc5 {[%clk 0:00:06]} 39. Rxc5 {[%clk 0:00:37]}  Rb6 {[%clk 0:00:06]} 40. Rc1 {[%clk 0:00:30]}  h6 {[%clk 0:00:06]} 41. Rcb1 {[%clk 0:00:30]}  b3 {[%clk 0:00:03]} 42. Kf1 {[%clk 0:00:26]}  Kf6 {[%clk 0:00:02]} 43. Ke2 {[%clk 0:00:26]}  Ke7 {[%clk 0:00:02]} 44. Kd2 {[%clk 0:00:26]}  Bd7 {[%clk 0:00:02]} 45. Bxd7 {[%clk 0:00:25]}  Kxd7 {[%clk 0:00:03]} 46. Kc3 {[%clk 0:00:26]}  Ra4 {[%clk 0:00:03]} 47. Rxb3 {[%clk 0:00:26]}  Rc4+ {[%clk 0:00:04]} 48. Kd2 {[%clk 0:00:26]}  Rxb3 {[%clk 0:00:04]} 49. Rxb3 {[%clk 0:00:27]}  Ke6 {[%clk 0:00:04]} 50. Ke2 {[%clk 0:00:25]}  Kd6 {[%clk 0:00:04]} 51. Kf3 {[%clk 0:00:26]}  Rc2 {[%clk 0:00:04]} 52. Rb8 {[%clk 0:00:24]}  Ke6 {[%clk 0:00:04]} 53. Rh8 {[%clk 0:00:24]}  Ke7 {[%clk 0:00:03]} 54. Rxh6 {[%clk 0:00:23]}  Kd7 {[%clk 0:00:04]} 55. h4 {[%clk 0:00:22]}  Ke7 {[%clk 0:00:04]} 56. h5 {[%clk 0:00:22]}  c5 {[%clk 0:00:05]} 57. dxc5 {[%clk 0:00:19]}  Rxc5 {[%clk 0:00:05]} 58. Ra6 {[%clk 0:00:19]}  Rc4 {[%clk 0:00:04]} 59. Ra7+ {[%clk 0:00:17]}  Kf8 {[%clk 0:00:00]} 60. Rd7 {[%clk 0:00:15]} 1-0

[Event "December 5 Early 2023"]
[Site "https://www.chess.com"]
[Date "2023.12.05"]
[Round "1"]
[White "Prohaszka, Peter"]
[Black "Battlecruiser_Operational"]
[Result "1-0"]
[Board "147"]
[TimeControl "180+1"]
[WhiteFideId "726265"]
[WhiteElo "2650"]
[BlackElo "2347"]
[WhiteTeam "HUN"]
[WhiteClock "0:00:05"]
[BlackClock "0:00:27"]

1. e4 {[%clk 0:03:00]}  e6 {[%clk 0:02:33]} 2. d4 {[%clk 0:03:00]}  d5 {[%clk 0:02:28]} 3. e5 {[%clk 0:03:01]}  c5 {[%clk 0:02:26]} 4. c3 {[%clk 0:03:01]}  Nc6 {[%clk 0:02:25]} 5. Nf3 {[%clk 0:03:02]}  Bd7 {[%clk 0:02:25]} 6. Be2 {[%clk 0:03:02]}  Rc8 {[%clk 0:02:22]} 7. O-O {[%clk 0:03:01]}  Qb6 {[%clk 0:02:22]} 8. a3 {[%clk 0:03:01]}  c4 {[%clk 0:02:21]} 9. Nbd2 {[%clk 0:02:52]}  Nge7 {[%clk 0:02:19]} 10. Qe1 {[%clk 0:02:32]}  Ng6 {[%clk 0:02:17]} 11. g3 {[%clk 0:02:31]}  Be7 {[%clk 0:02:16]} 12. Bd1 {[%clk 0:02:31]}  O-O {[%clk 0:02:14]} 13. h4 {[%clk 0:02:26]}  f6 {[%clk 0:02:13]} 14. h5 {[%clk 0:02:21]}  Nh8 {[%clk 0:02:13]} 15. h6 {[%clk 0:02:18]}  gxh6 {[%clk 0:02:08]} 16. exf6 {[%clk 0:02:16]}  Bxf6 {[%clk 0:02:08]} 17. Bc2 {[%clk 0:02:10]}  Ng6 {[%clk 0:02:04]} 18. Qe3 {[%clk 0:01:55]}  Bg7 {[%clk 0:02:02]} 19. Re1 {[%clk 0:01:41]}  Rce8 {[%clk 0:02:00]} 20. Nf1 {[%clk 0:01:22]}  Na5 {[%clk 0:01:50]} 21. N1h2 {[%clk 0:01:14]}  Nb3 {[%clk 0:01:49]} 22. Bxb3 {[%clk 0:01:14]}  Qxb3 {[%clk 0:01:43]} 23. Qe2 {[%clk 0:01:04]}  e5 {[%clk 0:01:34]} 24. dxe5 {[%clk 0:01:04]}  Nxe5 {[%clk 0:01:34]} 25. Nxe5 {[%clk 0:01:02]}  Rxe5 {[%clk 0:01:34]} 26. Be3 {[%clk 0:01:02]}  Bf5 {[%clk 0:01:25]} 27. Ng4 {[%clk 0:00:56]}  Re6 {[%clk 0:01:21]} 28. Nh2 {[%clk 0:00:21]}  Bd3 {[%clk 0:01:17]} 29. Qg4 {[%clk 0:00:19]}  Re4 {[%clk 0:01:03]} 30. Qd7 {[%clk 0:00:19]}  Re5 {[%clk 0:00:45]} 31. Ng4 {[%clk 0:00:19]}  Ref5 {[%clk 0:00:43]} 32. Bxh6 {[%clk 0:00:10]}  R5f7 {[%clk 0:00:30]} 33. Qxd5 {[%clk 0:00:10]}  Qxb2 {[%clk 0:00:29]} 34. Bxg7 {[%clk 0:00:10]}  Kxg7 {[%clk 0:00:30]} 35. Qg5+ {[%clk 0:00:08]}  Bg6 {[%clk 0:00:30]} 36. Qe5+ {[%clk 0:00:07]}  Rf6 {[%clk 0:00:30]} 37. Rad1 {[%clk 0:00:06]}  Qxa3 {[%clk 0:00:28]} 38. Rd7+ {[%clk 0:00:05]}  Rf7 {[%clk 0:00:28]} 39. Qxf6+ {[%clk 0:00:05]}  Kg8 {[%clk 0:00:28]} 40. Nh6+ {[%clk 0:00:05]}  Kf8 {[%clk 0:00:27]} 41. Rd8# {[%clk 0:00:05]} 1-0

[Event "December 5 Early 2023"]
[Site "https://www.chess.com"]
[Date "2023.12.05"]
[Round "1"]
[White "Zia, Tahsin Tajwar"]
[Black "Feuerstack, Aljoscha"]
[Result "1/2-1/2"]
[Board "148"]
[TimeControl "180+1"]
[WhiteFideId "10211888"]
[BlackFideId "4681932"]
[WhiteElo "2347"]
[BlackElo "2649"]
[WhiteTeam "BAN"]
[BlackTeam "GER"]
[WhiteClock "0:00:12"]
[BlackClock "0:00:12"]

1. d4 {[%clk 0:03:00]}  Nf6 {[%clk 0:02:58]} 2. Nc3 {[%clk 0:02:58]}  d5 {[%clk 0:02:48]} 3. Bf4 {[%clk 0:02:57]}  a6 {[%clk 0:02:43]} 4. e3 {[%clk 0:02:55]}  c5 {[%clk 0:02:38]} 5. dxc5 {[%clk 0:02:52]}  Nc6 {[%clk 0:02:38]} 6. Nf3 {[%clk 0:02:51]}  Bg4 {[%clk 0:02:38]} 7. Be2 {[%clk 0:02:41]}  e6 {[%clk 0:02:34]} 8. Na4 {[%clk 0:02:26]}  Bxc5 {[%clk 0:02:19]} 9. Nxc5 {[%clk 0:02:26]}  Qa5+ {[%clk 0:02:19]} 10. c3 {[%clk 0:02:26]}  Qxc5 {[%clk 0:02:20]} 11. h3 {[%clk 0:02:15]}  Bxf3 {[%clk 0:02:19]} 12. Bxf3 {[%clk 0:02:16]}  O-O {[%clk 0:02:17]} 13. O-O {[%clk 0:02:15]}  Rad8 {[%clk 0:01:45]} 14. Bg5 {[%clk 0:02:12]}  Qe7 {[%clk 0:01:33]} 15. Qe2 {[%clk 0:02:12]}  h6 {[%clk 0:01:32]} 16. Bh4 {[%clk 0:02:10]}  e5 {[%clk 0:01:24]} 17. e4 {[%clk 0:01:46]}  d4 {[%clk 0:01:22]} 18. Rfd1 {[%clk 0:01:30]}  Rd6 {[%clk 0:01:20]} 19. Rac1 {[%clk 0:01:26]}  Rfd8 {[%clk 0:01:19]} 20. cxd4 {[%clk 0:01:24]}  Nxd4 {[%clk 0:01:20]} 21. Qe3 {[%clk 0:01:24]}  g5 {[%clk 0:01:13]} 22. Bg3 {[%clk 0:01:22]}  Nxf3+ {[%clk 0:01:10]} 23. Qxf3 {[%clk 0:01:22]}  Rxd1+ {[%clk 0:01:11]} 24. Rxd1 {[%clk 0:01:23]}  Rxd1+ {[%clk 0:01:12]} 25. Qxd1 {[%clk 0:01:23]}  Nxe4 {[%clk 0:01:13]} 26. Qd5 {[%clk 0:01:23]}  Nxg3 {[%clk 0:01:10]} 27. fxg3 {[%clk 0:01:24]}  Qc7 {[%clk 0:01:08]} 28. Kh2 {[%clk 0:01:23]}  Kg7 {[%clk 0:01:05]} 29. b4 {[%clk 0:01:21]}  Qe7 {[%clk 0:01:03]} 30. Qe4 {[%clk 0:01:15]}  b6 {[%clk 0:00:58]} 31. a3 {[%clk 0:01:12]}  a5 {[%clk 0:00:54]} 32. bxa5 {[%clk 0:01:07]}  bxa5 {[%clk 0:00:55]} 33. Qd5 {[%clk 0:01:04]}  e4 {[%clk 0:00:44]} 34. Qxa5 {[%clk 0:01:03]}  e3 {[%clk 0:00:45]} 35. a4 {[%clk 0:00:53]}  e2 {[%clk 0:00:44]} 36. Qe1 {[%clk 0:00:54]}  Qe3 {[%clk 0:00:41]} 37. a5 {[%clk 0:00:49]}  Qd3 {[%clk 0:00:41]} 38. Kg1 {[%clk 0:00:41]}  Qd4+ {[%clk 0:00:41]} 39. Kh2 {[%clk 0:00:29]}  Qd1 {[%clk 0:00:40]} 40. Qc3+ {[%clk 0:00:29]}  Kg6 {[%clk 0:00:39]} 41. Qc6+ {[%clk 0:00:28]}  Kg7 {[%clk 0:00:38]} 42. Qc3+ {[%clk 0:00:27]}  Kh7 {[%clk 0:00:25]} 43. Qc4 {[%clk 0:00:17]}  Qf1 {[%clk 0:00:24]} 44. Qe4+ {[%clk 0:00:15]}  Kg7 {[%clk 0:00:25]} 45. Qe5+ {[%clk 0:00:15]}  Kg6 {[%clk 0:00:25]} 46. Qe4+ {[%clk 0:00:15]}  Kf6 {[%clk 0:00:26]} 47. Qd4+ {[%clk 0:00:14]}  Ke6 {[%clk 0:00:26]} 48. Qe4+ {[%clk 0:00:13]}  Kf6 {[%clk 0:00:24]} 49. Qd4+ {[%clk 0:00:13]}  Kg6 {[%clk 0:00:22]} 50. Qe4+ {[%clk 0:00:13]}  Kg7 {[%clk 0:00:22]} 51. Qe5+ {[%clk 0:00:14]}  f6 {[%clk 0:00:21]} 52. Qe7+ {[%clk 0:00:14]}  Kg6 {[%clk 0:00:21]} 53. Qe4+ {[%clk 0:00:13]}  Kf7 {[%clk 0:00:18]} 54. Qh7+ {[%clk 0:00:13]}  Ke6 {[%clk 0:00:19]} 55. Qe4+ {[%clk 0:00:14]}  Kd6 {[%clk 0:00:19]} 56. Qd4+ {[%clk 0:00:14]}  Ke7 {[%clk 0:00:19]} 57. Qe4+ {[%clk 0:00:13]}  Kf8 {[%clk 0:00:19]} 58. Qa8+ {[%clk 0:00:13]}  Kg7 {[%clk 0:00:20]} 59. Qb7+ {[%clk 0:00:14]}  Kg8 {[%clk 0:00:19]} 60. Qa8+ {[%clk 0:00:14]}  Kg7 {[%clk 0:00:20]} 61. Qb7+ {[%clk 0:00:14]}  Kg6 {[%clk 0:00:19]} 62. Qe4+ {[%clk 0:00:15]}  Kf7 {[%clk 0:00:15]} 63. Qb7+ {[%clk 0:00:14]}  Ke8 {[%clk 0:00:16]} 64. Qc6+ {[%clk 0:00:13]}  Kd8 {[%clk 0:00:16]} 65. Qd6+ {[%clk 0:00:13]}  Ke8 {[%clk 0:00:14]} 66. Qc6+ {[%clk 0:00:14]}  Kf7 {[%clk 0:00:14]} 67. Qb7+ {[%clk 0:00:13]}  Kg8 {[%clk 0:00:12]} 68. Qa8+ {[%clk 0:00:12]}  Kg7 {[%clk 0:00:12]} 1/2-1/2

[Event "December 5 Early 2023"]
[Site "https://www.chess.com"]
[Date "2023.12.05"]
[Round "1"]
[White "Kuzhylnyi, Oleksandr"]
[Black "Biernacki, Mark"]
[Result "1-0"]
[Board "149"]
[TimeControl "180+1"]
[WhiteFideId "34110500"]
[BlackFideId "2082322"]
[WhiteElo "2648"]
[BlackElo "2344"]
[WhiteTeam "UKR"]
[BlackTeam "USA"]
[WhiteClock "0:00:37"]
[BlackClock "0:00:21"]

1. b4 {[%clk 0:03:00]}  d5 {[%clk 0:02:55]} 2. Bb2 {[%clk 0:03:00]}  Bf5 {[%clk 0:02:55]} 3. e3 {[%clk 0:02:59]}  e6 {[%clk 0:02:55]} 4. Nf3 {[%clk 0:02:58]}  Nf6 {[%clk 0:02:53]} 5. a3 {[%clk 0:02:58]}  h6 {[%clk 0:02:53]} 6. d3 {[%clk 0:02:56]}  Bh7 {[%clk 0:02:53]} 7. Nbd2 {[%clk 0:02:56]}  a5 {[%clk 0:02:53]} 8. b5 {[%clk 0:02:50]}  c6 {[%clk 0:02:53]} 9. bxc6 {[%clk 0:02:44]}  bxc6 {[%clk 0:02:53]} 10. Be2 {[%clk 0:02:43]}  Nbd7 {[%clk 0:02:53]} 11. O-O {[%clk 0:02:43]}  Be7 {[%clk 0:02:50]} 12. Ne5 {[%clk 0:02:41]}  Qc7 {[%clk 0:02:44]} 13. Nxd7 {[%clk 0:02:40]}  Qxd7 {[%clk 0:02:45]} 14. Nf3 {[%clk 0:02:37]}  O-O {[%clk 0:02:40]} 15. Qd2 {[%clk 0:02:35]}  c5 {[%clk 0:02:29]} 16. Rfb1 {[%clk 0:02:01]}  Rfd8 {[%clk 0:02:24]} 17. Be5 {[%clk 0:01:53]}  Qc6 {[%clk 0:02:11]} 18. Ra2 {[%clk 0:01:41]}  Nd7 {[%clk 0:02:05]} 19. Ba1 {[%clk 0:01:41]}  c4 {[%clk 0:01:56]} 20. Ne5 {[%clk 0:01:22]}  Qa4 {[%clk 0:01:28]} 21. Rb7 {[%clk 0:01:18]}  cxd3 {[%clk 0:00:38]} 22. cxd3 {[%clk 0:01:10]}  Bd6 {[%clk 0:00:36]} 23. Bd1 {[%clk 0:01:04]}  Qh4 {[%clk 0:00:24]} 24. g3 {[%clk 0:01:05]}  Qe7 {[%clk 0:00:22]} 25. Nc6 {[%clk 0:01:02]}  Qe8 {[%clk 0:00:22]} 26. Nxd8 {[%clk 0:01:02]}  Qxd8 {[%clk 0:00:21]} 27. Rc2 {[%clk 0:00:55]}  Nc5 {[%clk 0:00:21]} 28. Qc3 {[%clk 0:00:38]}  Nxb7 {[%clk 0:00:21]} 29. Qxg7# {[%clk 0:00:37]} 1-0

[Event "December 5 Early 2023"]
[Site "https://www.chess.com"]
[Date "2023.12.05"]
[Round "1"]
[White "Spichkin, Alexander"]
[Black "Agibileg, Uurtsaikh"]
[Result "1-0"]
[Board "152"]
[TimeControl "180+1"]
[WhiteFideId "4144074"]
[BlackFideId "4901606"]
[WhiteElo "2342"]
[BlackElo "2645"]
[WhiteTeam "RUS"]
[BlackTeam "MGL"]
[WhiteClock "0:02:45"]
[BlackClock "0:01:59"]

1. f4 {[%clk 0:03:00]}  e6 {[%clk 0:02:52]} 2. Nf3 {[%clk 0:03:00]}  c5 {[%clk 0:02:51]} 3. e3 {[%clk 0:02:58]}  Nc6 {[%clk 0:02:50]} 4. Be2 {[%clk 0:02:58]}  d5 {[%clk 0:02:50]} 5. O-O {[%clk 0:02:58]}  Nf6 {[%clk 0:02:50]} 6. b3 {[%clk 0:02:58]}  Be7 {[%clk 0:02:50]} 7. Bb5 {[%clk 0:02:57]}  Bd7 {[%clk 0:02:48]} 8. Bb2 {[%clk 0:02:57]}  O-O {[%clk 0:02:47]} 9. Bxc6 {[%clk 0:02:58]}  Bxc6 {[%clk 0:02:47]} 10. Ne5 {[%clk 0:02:58]}  Qc7 {[%clk 0:02:48]} 11. Rf3 {[%clk 0:02:58]}  Ne4 {[%clk 0:02:46]} 12. Rh3 {[%clk 0:02:58]}  g6 {[%clk 0:02:41]} 13. d3 {[%clk 0:02:54]}  Nd6 {[%clk 0:02:37]} 14. Nxc6 {[%clk 0:02:52]}  Qxc6 {[%clk 0:02:38]} 15. Qh5 {[%clk 0:02:50]}  Bh4 {[%clk 0:01:59]} 16. Qxh7+ {[%clk 0:02:45]} 1-0